bitfinex/quotes_ETHUSD_20241103
["timestamp","ask_amount","ask_price","bid_price","bid_amount"]
[1730621599448,0.49799812,2449.7,2449.3,4.23222]
[1730621599649,0.49799812,2449.7,2449.4,1.84783855]
[1730621599854,4.0818,2449.9,2449.4,1.14135]
[1730621600160,4.0818,2449.9,2449.5,4.08246]
[1730621600527,4.0818,2449.9,2449.4,4.08262]
[1730621600746,4.0818,2449.9,2449.5,0.88698296]
[1730621600960,4.0818,2449.9,2449.5,1.94731861]
[1730621601163,4.0818,2449.9,2449.5,1.2404216]
[1730621601363,4.0818,2449.9,2449.6,0.7073441]
[1730621601531,0.896017,2449.8,2449.6,0.7073441]
[1730621602468,0.896017,2449.8,2449.5,2.097464]
[1730621602638,0.896017,2449.8,2449.6,0.70756891]
[1730621603231,0.896017,2449.8,2449.6,1.94799051]
[1730621603432,4.977987,2449.8,2449.6,1.2404216]
[1730621603768,4.977987,2449.8,2449.5,1.03714809]
[1730621603952,4.977987,2449.8,2449.6,0.88785661]
[1730621604128,4.977987,2449.8,2449.6,0.18010569]
[1730621605067,4.977987,2449.8,2449.6,0.18038265]
[1730621605429,4.977987,2449.8,2449.7,0.18038265]
[1730621605630,4.977987,2449.8,2449.6,0.18038265]
[1730621606366,4.977987,2449.8,2449.7,0.18038265]
[1730621606584,4.977987,2449.8,2449.6,0.18038265]
[1730621606728,4.977987,2449.8,2449.7,0.18038265]
[1730621606928,4.977987,2449.8,2449.5,1.9190034]
[1730621606929,4.977987,2449.8,2449.6,0.18038265]
[1730621607129,4.977987,2449.8,2449.5,1.9190034]
[1730621607368,4.977987,2449.8,2449.6,0.88872724]
[1730621607537,4.977987,2449.8,2449.7,0.1804547]
[1730621607745,4.977987,2449.8,2449.6,0.1804547]
[1730621608042,4.977987,2449.8,2449.7,0.1804547]
[1730621608243,4.977987,2449.8,2449.6,0.1804547]
[1730621608442,4.977987,2449.8,2449.7,0.1804547]
[1730621608661,4.977987,2449.8,2449.6,0.1804547]
[1730621608869,4.977987,2449.8,2449.7,0.1804547]
[1730621609034,4.977987,2449.8,2449.5,0.1804547]
[1730621609239,4.977987,2449.8,2449.6,0.1804547]
[1730621609461,4.977987,2449.8,2449.5,0.1804547]
[1730621609663,4.977987,2449.8,2449.6,0.1804547]
[1730621609832,4.977987,2449.8,2449.5,1.2424157]
[1730621610035,4.977987,2449.8,2449.6,0.1804547]
[1730621610268,0.896017,2449.8,2449.6,0.1804547]
[1730621610479,4.87833,2450.0,2449.7,0.1804547]
[1730621610691,4.87833,2450.0,2449.6,4.08223]
[1730621610890,8.96005,2450.0,2449.7,0.18050152]
[1730621611093,4.08179,2449.9,2449.7,0.18050152]
[1730621611293,4.08179,2449.9,2449.6,1.24313488]
[1730621611494,4.08179,2449.9,2449.7,0.18050152]
[1730621611693,4.08179,2449.9,2449.8,0.18050152]
[1730621611993,4.08179,2449.9,2449.7,0.18050152]
[1730621612195,4.08179,2449.9,2449.8,0.18050152]
[1730621613990,4.08179,2449.9,2449.6,1.06263336]
[1730621614159,4.08179,2449.9,2449.7,0.18058245]
[1730621614358,4.08179,2449.9,2449.8,0.18058245]
[1730621614600,4.08179,2449.9,2449.5,5.22835856]
[1730621614601,4.08179,2449.9,2449.6,1.06310217]
[1730621614762,4.08179,2449.9,2449.7,0.18057696]
[1730621614955,4.08179,2449.9,2449.8,0.18057696]
[1730621616016,4.08179,2449.9,2449.7,0.18057696]
[1730621616017,4.08196,2449.8,2449.7,0.18057696]
[1730621617774,4.08196,2449.8,2449.7,0.18057201]
[1730621619177,4.08196,2449.8,2449.5,0.18057201]
[1730621619398,4.08196,2449.8,2449.6,0.88931718]
[1730621619606,4.08196,2449.8,2449.7,0.18057201]
[1730621619804,5.20815578,2449.8,2449.7,0.18057201]
[1730621622283,4.08213,2449.7,2449.6,0.18057201]
[1730621622612,4.08213,2449.7,2449.6,0.88931795]
[1730621622779,4.08213,2449.7,2449.6,0.8893223]
[1730621623187,4.08213,2449.7,2449.6,0.18057201]
[1730621623381,5.09254858,2449.7,2449.6,0.88932317]
[1730621623605,5.09254858,2449.7,2449.6,0.88931672]
[1730621624306,5.90644858,2449.7,2449.6,0.18057201]
[1730621624677,4.08246,2449.5,2449.3,2.20905061]
[1730621624911,4.08246,2449.5,2449.4,0.70878038]
[1730621625127,4.08246,2449.5,2449.4,0.88931974]
[1730621626379,4.08246,2449.5,2449.4,1.74636214]
[1730621626686,4.08246,2449.5,2449.4,0.88931974]
[1730621627811,4.08246,2449.5,2449.4,1.74636214]
[1730621627980,4.08246,2449.5,2449.4,0.88931974]
[1730621628180,4.08246,2449.5,2449.4,0.18053936]
[1730621628412,4.08246,2449.5,2449.4,0.88935221]
[1730621630412,4.08246,2449.5,2449.4,1.74639461]
[1730621630711,4.08246,2449.5,2449.4,0.88935221]
[1730621632918,4.08246,2449.5,2449.4,1.74639461]
[1730621633223,4.08246,2449.5,2449.4,1.74640283]
[1730621633614,4.08246,2449.5,2449.4,0.88936043]
[1730621634215,4.08246,2449.5,2449.4,2.03530851]
[1730621634784,4.08246,2449.5,2449.4,0.88936043]
[1730621635186,4.08246,2449.5,2449.4,0.70880954]
[1730621635385,4.08246,2449.5,2449.4,1.74642278]
[1730621635610,4.08246,2449.5,2449.4,2.03536038]
[1730621635916,4.08246,2449.5,2449.4,0.88938041]
[1730621637659,4.08246,2449.5,2449.4,0.88943209]
[1730621637945,9.98867858,2449.7,2449.4,0.88943209]
[1730621638247,4.89603,2449.7,2449.5,0.88943209]
[1730621638546,4.89603,2449.7,2449.6,0.88943209]
[1730621639021,4.89603,2449.7,2449.6,0.70888232]
[1730621639205,4.89603,2449.7,2449.6,0.18057746]
[1730621639410,4.89603,2449.7,2449.6,0.88946195]
[1730621640314,4.08213,2449.7,2449.6,0.88946195]
[1730621640646,8.16412,2449.8,2449.6,0.18057963]
[1730621640850,8.16412,2449.8,2449.7,0.18057963]
[1730621642245,9.19140199,2449.8,2449.7,0.18057963]
[1730621645179,4.08222,2449.7,2449.4,1.92031709]
[1730621645376,4.08222,2449.7,2449.5,0.70893578]
[1730621645673,4.08222,2449.7,2449.6,0.18059394]
[1730621648294,4.08222,2449.7,2449.4,1.92043582]
[1730621648475,4.08222,2449.7,2449.5,0.70892826]
[1730621648648,4.08222,2449.7,2449.5,0.88953226]
[1730621648849,4.08222,2449.7,2449.6,0.88953226]
[1730621649076,4.08222,2449.7,2449.6,0.180604]
[1730621649280,4.08222,2449.7,2449.6,0.88956358]
[1730621650247,4.08222,2449.7,2449.6,0.180604]
[1730621651385,4.08222,2449.7,2449.6,0.88953759]
[1730621652097,4.08204,2449.8,2449.6,1.03901858]
[1730621652401,4.08204,2449.8,2449.7,0.180604]
[1730621652601,4.08196,2449.8,2449.7,0.180604]
[1730621653466,4.08181,2449.9,2449.7,0.180604]
[1730621653667,4.08181,2449.9,2449.8,0.180604]
[1730621653862,4.08172,2450.0,2449.8,0.180604]
[1730621654102,4.08179,2449.9,2449.6,1.21289342]
[1730621654320,4.08179,2449.9,2449.7,0.8894836]
[1730621654462,4.08179,2449.9,2449.7,0.18059855]
[1730621654666,4.08179,2449.9,2449.8,0.18059779]
[1730621664687,4.08179,2449.9,2449.6,1.21291384]
[1730621665312,4.08179,2449.9,2449.7,0.18062253]
[1730621665514,4.08179,2449.9,2449.8,0.18062253]
[1730621666091,1.27779986,2450.0,2449.8,0.18062253]
[1730621666286,5.35943986,2450.0,2449.6,1.21291384]
[1730621666494,9.44114986,2450.0,2449.7,0.1806217]
[1730621666813,9.44114986,2450.0,2449.8,0.1806217]
[1730621667010,9.44114986,2450.0,2449.6,1.21291384]
[1730621667260,9.44114986,2450.0,2449.7,0.18062159]
[1730621667549,5.35943986,2450.0,2449.8,0.18062159]
[1730621667848,5.35943986,2450.0,2449.6,1.21291384]
[1730621668052,9.44116986,2450.0,2449.7,0.1806209]
[1730621668219,9.44116986,2450.0,2449.8,0.1806209]
[1730621668409,9.44116986,2450.0,2449.6,1.21291384]
[1730621668615,9.44116986,2450.0,2449.7,0.18062301]
[1730621668809,9.44116986,2450.0,2449.8,0.18062301]
[1730621669011,9.44116986,2450.0,2449.6,1.21291384]
[1730621669242,5.35943986,2450.0,2449.7,0.18062349]
[1730621669550,5.35943986,2450.0,2449.8,0.18062349]
[1730621669551,4.08181,2449.9,2449.8,0.18062349]
[1730621672472,5.35950986,2450.0,2449.8,0.18062366]
[1730621672651,5.35950986,2450.0,2449.6,4.23179]
[1730621672973,5.35950986,2450.0,2449.7,0.1806259]
[1730621673133,5.35950986,2450.0,2449.8,0.1806259]
[1730621673461,5.35950986,2450.0,2449.6,4.23179]
[1730621673666,9.44121986,2450.0,2449.7,0.18062491]
[1730621673839,9.44121986,2450.0,2449.8,0.18062491]
[1730621674042,9.44121986,2450.0,2449.6,4.23179]
[1730621674244,9.44121986,2450.0,2449.7,0.18062703]
[1730621674441,5.35950986,2450.0,2449.8,0.18062703]
[1730621674667,5.35950986,2450.0,2449.6,4.23179]
[1730621674668,1.27779986,2450.0,2449.7,4.08202]
[1730621674869,4.0815,2450.1,2449.8,0.18062375]
[1730621675029,4.0815,2450.1,2449.7,4.08202]
[1730621675225,4.0815,2450.1,2449.6,0.1495]
[1730621675226,4.08165,2450.0,2449.8,0.18062988]
[1730621675426,4.08165,2450.0,2449.9,0.18062988]
[1730621675840,4.08196,2449.8,2449.7,0.18062988]
[1730621676045,4.87256,2449.8,2449.7,0.18062891]
[1730621676267,4.08237,2449.6,2449.4,0.18063901]
[1730621676435,4.08237,2449.6,2449.5,0.18062758]
[1730621676636,4.08237,2449.6,2449.5,0.18062753]
[1730621678970,4.08237,2449.6,2449.5,0.1806194]
[1730621679669,4.87268,2449.8,2449.5,0.1806194]
[1730621679880,4.87268,2449.8,2449.3,0.2890153]
[1730621679881,4.08215,2449.7,2449.6,0.1806194]
[1730621681261,6.1558237,2449.8,2449.6,0.1806194]
[1730621681439,4.08233,2449.6,2449.3,2.21014238]
[1730621681770,4.08233,2449.6,2449.4,0.88962538]
[1730621681963,4.08213,2449.7,2449.5,0.88962538]
[1730621682169,4.08213,2449.7,2449.6,0.18060565]
[1730621683476,4.08213,2449.7,2449.6,0.18060747]
[1730621687088,0.7879,2449.5,2449.4,0.18059857]
[1730621687239,4.87036,2449.5,2449.4,0.88953905]
[1730621687438,4.87036,2449.5,2449.4,0.18059857]
[1730621688172,4.87036,2449.5,2449.2,0.18059857]
[1730621688381,4.08265,2449.4,2449.3,0.88949581]
[1730621689183,4.87036,2449.5,2449.3,0.88938985]
[1730621689184,8.95296,2449.5,2449.3,0.88938985]
[1730621689378,8.95296,2449.5,2449.4,0.18059857]
[1730621689549,4.08263,2449.4,2449.2,0.18059857]
[1730621689743,4.08263,2449.4,2449.3,0.88930869]
[1730621690656,4.08263,2449.4,2449.3,0.8892611]
[1730621691549,4.87036,2449.5,2449.3,0.18055098]
[1730621691752,4.87036,2449.5,2449.4,0.18055098]
[1730621691952,4.08265,2449.4,2449.2,0.18055098]
[1730621692261,4.08265,2449.4,2449.3,0.70856655]
[1730621692449,4.08265,2449.4,2449.1,2.62927986]
[1730621692651,4.08265,2449.4,2449.2,0.70856655]
[1730621692983,4.08265,2449.4,2449.3,0.70856655]
[1730621693180,4.87036,2449.5,2449.1,2.62927986]
[1730621693378,8.95293,2449.5,2449.3,0.18052734]
[1730621693577,4.87036,2449.5,2449.2,0.18052734]
[1730621693777,4.87036,2449.5,2449.3,0.70848584]
[1730621693959,8.95291,2449.5,2449.3,0.36105128]
[1730621694163,8.95291,2449.5,2449.3,0.18052638]
[1730621694363,4.87036,2449.5,2449.4,0.18052134]
[1730621694755,4.87036,2449.5,2449.2,0.18052134]
[1730621694959,4.87036,2449.5,2449.3,0.88896587]
[1730621695161,4.87036,2449.5,2449.4,0.18052134]
[1730621695354,4.87036,2449.5,2449.2,0.18052134]
[1730621695561,4.87036,2449.5,2449.3,0.88896582]
[1730621695844,0.7879,2449.5,2449.4,0.18050603]
[1730621696049,4.08263,2449.4,2449.2,0.18050603]
[1730621696350,6.1425237,2449.8,2449.3,1.03842271]
[1730621696588,4.08231,2449.6,2449.4,0.88888439]
[1730621696888,4.08231,2449.6,2449.5,0.18050603]
[1730621697047,4.08231,2449.6,2449.4,0.18050603]
[1730621697475,4.08231,2449.6,2449.5,0.18050603]
[1730621697654,4.08231,2449.6,2449.4,0.18050603]
[1730621697846,4.08231,2449.6,2449.5,0.18050603]
[1730621698184,4.08215,2449.7,2449.4,0.18050603]
[1730621698353,8.16438,2449.7,2449.5,0.18050603]
[1730621698553,8.16438,2449.7,2449.4,0.18050603]
[1730621698754,8.16438,2449.7,2449.5,0.18050603]
[1730621698958,4.08215,2449.7,2449.4,0.18050603]
[1730621699166,4.08215,2449.7,2449.5,0.18050603]
[1730621699486,8.16439,2449.7,2449.4,0.18048562]
[1730621699796,8.16439,2449.7,2449.5,0.18048562]
[1730621699950,8.16439,2449.7,2449.4,0.18048562]
[1730621700291,4.08229,2449.6,2449.5,0.18048562]
[1730621700456,4.08229,2449.6,2449.4,0.18048562]
[1730621700655,4.08229,2449.6,2449.5,0.18048562]
[1730621700867,4.08229,2449.6,2449.4,0.18048562]
[1730621701055,4.08229,2449.6,2449.5,0.18048562]
[1730621701370,4.08229,2449.6,2449.4,0.18048562]
[1730621701577,4.08229,2449.6,2449.5,0.18048562]
[1730621701755,4.08215,2449.7,2449.3,1.21200655]
[1730621702100,4.08215,2449.7,2449.4,0.88885909]
[1730621702287,8.16437,2449.7,2449.5,0.18048872]
[1730621702454,8.16437,2449.7,2449.4,0.18048872]
[1730621702652,8.16437,2449.7,2449.5,0.18048872]
[1730621702854,8.16437,2449.7,2449.4,0.18048872]
[1730621703088,8.16437,2449.7,2449.5,0.18048872]
[1730621703294,4.08229,2449.6,2449.4,0.18048872]
[1730621703450,4.08229,2449.6,2449.5,0.18048872]
[1730621703802,4.08229,2449.6,2449.3,0.18048872]
[1730621703803,4.08263,2449.4,2449.3,0.18048872]
[1730621704091,4.08279,2449.3,2449.2,0.18048872]
[1730621704291,4.08279,2449.3,2449.1,0.18048872]
[1730621704795,4.85983,2449.4,2449.0,0.18048872]
[1730621704992,8.94261,2449.4,2449.1,0.18048872]
[1730621705285,8.1648,2449.6,2449.2,2.11162607]
[1730621705494,8.1648,2449.6,2449.3,0.18048534]
[1730621705649,8.16485,2449.6,2449.3,0.18048534]
[1730621705852,8.16485,2449.6,2449.4,0.18048534]
[1730621706052,8.16485,2449.6,2449.2,2.28529182]
[1730621706053,4.08249,2449.5,2449.3,0.18048534]
[1730621706289,4.08249,2449.5,2449.4,0.18048534]
[1730621706487,4.08249,2449.5,2449.3,0.18048534]
[1730621707595,4.08232,2449.6,2449.3,0.32998534]
[1730621708071,4.08247,2449.5,2449.3,0.32998534]
[1730621708276,4.08247,2449.5,2449.4,0.18048534]
[1730621709001,4.08247,2449.5,2449.3,0.1495]
[1730621709375,4.08232,2449.6,2449.4,0.18049188]
[1730621709783,4.08254,2449.5,2449.3,0.18049188]
[1730621710105,4.08254,2449.5,2449.2,0.18049188]
[1730621710258,4.08254,2449.5,2449.3,0.8889176]
[1730621710457,4.08254,2449.5,2449.4,0.18049188]
[1730621710657,4.08254,2449.5,2449.2,0.18049188]
[1730621710894,4.08254,2449.5,2449.3,0.88893946]
[1730621711086,4.08254,2449.5,2449.4,0.18049188]
[1730621711291,4.08254,2449.5,2449.2,0.18049188]
[1730621711459,4.08254,2449.5,2449.3,0.88894548]
[1730621711664,4.08254,2449.5,2449.4,0.18049188]
[1730621711896,4.08254,2449.5,2449.2,0.18049188]
[1730621712142,4.08254,2449.5,2449.3,0.8889624]
[1730621712411,4.08254,2449.5,2449.4,0.18049188]
[1730621712569,4.08254,2449.5,2449.2,1.24316283]
[1730621712767,4.08254,2449.5,2449.3,0.70850124]
[1730621713003,4.08254,2449.5,2449.4,0.18053046]
[1730621713178,4.08232,2449.6,2449.3,0.18053046]
[1730621713380,4.08232,2449.6,2449.4,0.18053046]
[1730621713575,4.08232,2449.6,2449.3,0.18053046]
[1730621713907,8.94165,2449.7,2449.4,0.18053046]
[1730621714080,4.08246,2449.5,2449.4,0.18053046]
[1730621714280,4.08246,2449.5,2449.3,0.18053046]
[1730621714463,4.08246,2449.5,2449.4,0.18053046]
[1730621714669,4.08246,2449.5,2449.2,0.18053046]
[1730621714891,4.08246,2449.5,2449.3,0.88908883]
[1730621715108,4.08246,2449.5,2449.4,0.18053046]
[1730621715280,4.08246,2449.5,2449.2,0.18053046]
[1730621715605,4.08246,2449.5,2449.3,0.88912661]
[1730621715770,4.976663,2449.5,2449.4,0.18053046]
[1730621715989,4.08279,2449.3,2449.2,0.18053046]
[1730621716193,4.08279,2449.3,2449.0,2.62905761]
[1730621716410,4.90496,2449.2,2449.1,0.88921084]
[1730621716609,0.822,2449.2,2449.1,0.88921084]
[1730621720210,4.90496,2449.2,2449.1,0.88928131]
[1730621723119,4.90496,2449.2,2449.1,0.70870747]
[1730621723316,4.08315,2449.1,2448.9,1.56616452]
[1730621723538,4.08315,2449.1,2449.0,0.88919206]
[1730621724762,4.08315,2449.1,2449.0,0.88915798]
[1730621726729,4.08315,2449.1,2449.0,0.88913255]
[1730621727928,4.08315,2449.1,2449.0,0.18053027]
[1730621728134,4.08329,2449.0,2448.9,0.18053027]
[1730621728348,4.89626,2448.9,2448.7,0.18053027]
[1730621728657,4.08329,2449.0,2448.6,0.18053027]
[1730621728658,4.89659,2448.7,2448.6,0.18053027]
[1730621729029,4.08413,2448.5,2448.4,0.18053027]
[1730621729236,4.08396,2448.6,2448.4,0.18053027]
[1730621729723,4.08396,2448.6,2448.5,0.18053027]
[1730621729918,4.08396,2448.6,2448.3,0.85752638]
[1730621729919,4.08396,2448.6,2448.4,0.18053027]
[1730621730219,4.08396,2448.6,2448.5,0.18045114]
[1730621730564,4.08396,2448.6,2448.4,0.18045114]
[1730621731232,4.08396,2448.6,2448.3,1.03797752]
[1730621731559,4.08413,2448.5,2448.4,0.70790045]
[1730621732355,4.08413,2448.5,2448.2,3.61235861]
[1730621732559,4.08413,2448.5,2448.3,0.7077444]
[1730621733659,4.08413,2448.5,2448.3,0.88801229]
[1730621733860,4.08413,2448.5,2448.2,3.61036979]
[1730621734025,4.08413,2448.5,2448.3,0.70759107]
[1730621734440,4.08413,2448.5,2448.3,0.88785894]
[1730621734650,4.08413,2448.5,2448.2,2.46439055]
[1730621734833,4.08413,2448.5,2448.3,0.70745075]
[1730621735547,4.89709,2448.4,2448.1,1.24165428]
[1730621735853,4.89713,2448.4,2447.9,1.18729425]
[1730621736059,4.08463,2448.2,2448.0,0.85752638]
[1730621736363,4.08463,2448.2,2448.1,0.7074158]
[1730621736574,4.08463,2448.2,2448.0,0.70722702]
[1730621736741,4.0848,2448.1,2447.9,1.03768202]
[1730621736949,4.0848,2448.1,2448.0,0.70724376]
[1730621737760,4.0848,2448.1,2447.9,0.18016132]
[1730621737967,4.0848,2448.1,2447.8,0.85752638]
[1730621738465,4.0848,2448.1,2447.9,0.70707464]
[1730621738669,4.0848,2448.1,2447.7,2.53685643]
[1730621738868,4.0848,2448.1,2447.8,0.70688577]
[1730621740146,4.08463,2448.2,2447.8,0.70688577]
[1730621740349,4.08463,2448.2,2447.8,3.17116977]
[1730621740667,4.08463,2448.2,2447.9,0.70657883]
[1730621740867,8.16936,2448.2,2447.9,0.70657883]
[1730621741032,4.08463,2448.2,2447.9,0.70657883]
[1730621741532,4.08447,2448.3,2447.9,4.08512]
[1730621741739,4.08447,2448.3,2448.0,1.55219596]
[1730621742038,4.08447,2448.3,2448.0,1.37223627]
[1730621742538,4.08448,2448.3,2448.0,1.55219596]
[1730621742732,4.08448,2448.3,2448.0,2.61173722]
[1730621744035,4.08448,2448.3,2448.0,2.61171147]
[1730621745146,4.08448,2448.3,2448.0,1.55217021]
[1730621745348,4.08421,2448.5,2448.0,2.61167042]
[1730621745531,4.08421,2448.5,2448.0,2.61166834]
[1730621745532,4.08431,2448.4,2448.0,2.61166834]
[1730621747064,4.08421,2448.5,2448.0,6.77821809]
[1730621747241,4.0843,2448.4,2448.2,0.1495]
[1730621747444,4.08446,2448.3,2448.0,0.1495]
[1730621747664,4.08446,2448.3,2447.9,1.23947748]
[1730621747665,4.08465,2448.2,2447.9,1.23947748]
[1730621747855,4.08465,2448.2,2447.9,0.17993212]
[1730621748153,4.08465,2448.2,2447.8,5.45742627]
[1730621749777,4.89745,2448.2,2447.8,5.45742627]
[1730621750981,4.89745,2448.2,2447.8,1.37223627]
[1730621751339,4.08498,2448.0,2447.8,1.22273627]
[1730621751872,4.08498,2448.0,2447.6,5.45776627]
[1730621753581,4.08521,2447.9,2447.6,1.37223627]
[1730621755061,4.08498,2448.0,2447.6,1.37223627]
[1730621755380,4.08516,2447.9,2447.6,1.37223627]
[1730621756569,4.08498,2448.0,2447.6,1.37223627]
[1730621757231,8.17008,2448.0,2447.6,1.37223627]
[1730621757789,4.08498,2448.0,2447.6,1.37223627]
[1730621758001,4.08498,2448.0,2447.6,5.45783627]
[1730621759152,4.08516,2447.9,2447.6,1.37223627]
[1730621759692,4.0851,2448.0,2447.6,1.22273627]
[1730621759984,0.8087,2448.0,2447.6,1.22273627]
[1730621760688,0.8087,2448.0,2447.6,1.40270073]
[1730621760892,0.8087,2448.0,2447.6,1.55220073]
[1730621761128,4.89372,2448.0,2447.6,1.55219936]
[1730621761705,4.89372,2448.0,2447.6,5.63779936]
[1730621761913,4.89372,2448.0,2447.6,5.45783627]
[1730621762297,4.89372,2448.0,2447.6,1.37223627]
[1730621762499,4.89372,2448.0,2447.6,1.55223386]
[1730621764897,4.08532,2447.8,2447.4,1.22273627]
[1730621765196,4.0855,2447.7,2447.4,1.22273627]
[1730621765797,4.08532,2447.8,2447.4,1.22273627]
[1730621766230,4.08532,2447.8,2447.6,1.22273627]
[1730621767892,4.08497,2448.0,2447.6,1.22273627]
[1730621768091,4.08515,2447.9,2447.6,1.22273627]
[1730621768305,4.08497,2448.0,2447.6,1.22273627]
[1730621768523,4.08441,2448.4,2447.9,0.1495]
[1730621768524,4.08465,2448.2,2447.9,0.1495]
[1730621769026,4.08457,2448.3,2447.9,0.1495]
[1730621769697,0.7843,2448.4,2448.1,4.08476]
[1730621770030,4.08413,2448.5,2448.2,1.22273627]
[1730621770394,4.86835,2448.6,2448.2,5.30735627]
[1730621770599,4.86835,2448.6,2448.2,1.22273627]
[1730621770830,4.08414,2448.5,2448.2,1.22273627]
[1730621772806,4.86828,2448.6,2448.2,1.22273627]
[1730621773000,4.86828,2448.6,2448.2,1.37223627]
[1730621773628,4.08398,2448.6,2448.2,1.37223627]
[1730621773811,4.08398,2448.6,2448.4,1.22273627]
[1730621774156,4.08393,2448.7,2448.4,1.22273627]
[1730621774643,4.084,2448.6,2448.4,1.22273627]
[1730621776828,0.7843,2448.8,2448.4,5.30695627]
[1730621777099,4.0833,2449.0,2448.6,5.30666627]
[1730621777503,4.0833,2449.0,2448.6,1.22273627]
[1730621777742,8.16668,2449.0,2448.6,1.22273627]
[1730621778409,4.0833,2449.0,2448.6,1.22273627]
[1730621778602,5.3663137,2449.2,2448.9,0.1495]
[1730621778603,4.08309,2449.2,2448.9,0.1495]
[1730621778798,8.16614,2449.2,2448.9,0.1495]
[1730621779608,4.08305,2449.2,2448.9,0.1495]
[1730621780539,4.86676,2449.5,2449.0,1.22273627]
[1730621780743,4.08273,2449.4,2449.0,1.22273627]
[1730621781643,4.86676,2449.5,2449.0,1.22273627]
[1730621781804,4.0828,2449.3,2449.0,1.22273627]
[1730621782004,4.08298,2449.2,2448.9,0.1495]
[1730621782252,0.408298,2449.2,2448.7,0.33008687]
[1730621782539,4.08313,2449.1,2448.7,0.33008687]
[1730621782746,8.16637,2449.1,2448.7,0.1495]
[1730621783121,4.08313,2449.1,2448.7,0.1495]
[1730621783305,4.08335,2449.0,2448.7,0.1495]
[1730621783516,4.08382,2448.7,2448.5,0.33006011]
[1730621783721,4.08382,2448.7,2448.5,0.1495]
[1730621783916,4.08382,2448.7,2448.4,1.22273627]
[1730621784428,4.08363,2448.8,2448.4,1.22273627]
[1730621787652,8.16736,2448.8,2448.4,1.22273627]
[1730621787951,4.08363,2448.8,2448.4,1.22273627]
[1730621788716,4.08363,2448.8,2448.4,5.30699627]
[1730621788915,4.08347,2448.9,2448.4,5.30699627]
[1730621789118,4.08347,2448.9,2448.4,5.38867254]
[1730621789731,4.08347,2448.9,2448.5,4.08413]
[1730621789931,4.08347,2448.9,2448.6,1.37223627]
[1730621790339,4.08342,2449.0,2448.6,1.37223627]
[1730621790539,4.08349,2448.9,2448.6,1.37223627]
[1730621793057,4.08363,2448.8,2448.6,0.1495]
[1730621793355,4.08366,2448.8,2448.6,0.1495]
[1730621794161,4.08366,2448.8,2448.4,5.45644627]
[1730621794362,4.08348,2448.9,2448.4,5.45644627]
[1730621795133,4.08339,2449.0,2448.6,1.22273627]
[1730621798160,4.08348,2448.9,2448.6,1.22273627]
[1730621800166,4.08348,2448.9,2448.5,4.08401]
[1730621803277,4.08348,2448.9,2448.6,1.22273627]
[1730621803475,4.0833,2449.0,2448.7,0.1495]
[1730621805155,4.08293,2449.3,2448.8,1.22273627]
[1730621805464,4.08293,2449.3,2448.9,0.1495]
[1730621805465,4.08279,2449.3,2448.9,0.1495]
[1730621805974,8.16569,2449.3,2448.9,0.1495]
[1730621806849,8.16569,2449.3,2448.9,0.23116039]
[1730621807045,4.08279,2449.3,2448.9,0.1495]
[1730621807380,8.16567,2449.3,2448.9,0.23116039]
[1730621807986,8.16567,2449.3,2448.9,0.1495]
[1730621807987,4.08301,2449.2,2448.9,0.1495]
[1730621809583,4.08279,2449.3,2448.9,0.1495]
[1730621809812,8.16573,2449.3,2448.9,0.1495]
[1730621810278,4.08298,2449.2,2448.9,0.1495]
[1730621811058,4.08279,2449.3,2448.9,0.1495]
[1730621811672,8.16572,2449.3,2448.9,0.1495]
[1730621812393,4.08279,2449.3,2448.9,0.1495]
[1730621812682,8.1657,2449.3,2448.9,0.1495]
[1730621813085,4.08298,2449.2,2448.9,0.1495]
[1730621814209,4.0828,2449.3,2448.9,0.1495]
[1730621819769,4.08297,2449.2,2448.9,0.1495]
[1730621821214,8.16603,2449.2,2448.9,0.33038141]
[1730621821413,4.08297,2449.2,2448.9,0.1495]
[1730621821574,4.08297,2449.2,2448.9,0.33038261]
[1730621821975,4.08297,2449.2,2448.9,0.1495]
[1730621822283,4.08297,2449.2,2448.9,0.33041055]
[1730621825484,4.08281,2449.3,2448.9,0.33041055]
[1730621825812,4.08281,2449.3,2448.9,4.41387055]
[1730621826012,4.08281,2449.3,2448.9,0.1495]
[1730621826180,4.08281,2449.3,2448.9,0.330434]
[1730621827516,4.08281,2449.3,2448.9,0.3304433]
[1730621828723,4.08281,2449.3,2448.9,4.4138233]
[1730621828916,4.08281,2449.3,2448.9,4.31454095]
[1730621829282,8.16574,2449.3,2449.0,0.18094257]
[1730621829620,8.16574,2449.3,2448.9,0.41210354]
[1730621829621,4.08281,2449.3,2448.9,0.41210354]
[1730621830320,5.3657837,2449.5,2448.9,0.41210354]
[1730621830321,1.2832237,2449.4,2449.0,8.16639]
[1730621830518,5.3657737,2449.5,2449.0,8.16639]
[1730621830685,5.3657737,2449.5,2449.0,5.30591627]
[1730621830885,1.2832237,2449.5,2449.1,4.31425434]
[1730621831222,5.3655337,2449.6,2449.1,4.31425434]
[1730621831517,4.08256,2449.5,2449.1,4.31425434]
[1730621831719,4.08256,2449.5,2449.1,0.23115434]
[1730621832086,4.08256,2449.5,2449.1,0.41208704]
[1730621832414,4.08256,2449.5,2449.1,0.41208669]
[1730621832715,4.08273,2449.4,2449.1,0.3304327]
[1730621832924,4.08273,2449.4,2449.1,0.1495]
[1730621833080,4.08171275,2449.4,2449.1,0.33042271]
[1730621833287,4.08171275,2449.4,2449.1,0.1495]
[1730621833638,4.08171275,2449.4,2449.1,0.33041437]
[1730621834219,4.08171275,2449.4,2449.1,0.1495]
[1730621842103,4.08313,2449.1,2449.0,0.18092345]
[1730621842415,4.08379,2448.7,2448.6,0.18092345]
[1730621842726,4.08379,2448.7,2448.4,0.18092345]
[1730621842727,4.08396,2448.6,2448.4,0.18092345]
[1730621842924,4.08396,2448.6,2448.3,0.18092345]
[1730621843299,4.08396,2448.6,2448.2,1.39332086]
[1730621843500,4.08396,2448.6,2448.2,1.39311285]
[1730621843708,4.08396,2448.6,2448.3,0.88936364]
[1730621843915,4.08396,2448.6,2448.3,0.18092345]
[1730621844935,4.08429,2448.4,2448.3,0.18092345]
[1730621845110,4.08429,2448.4,2448.2,0.18092345]
[1730621845305,4.08429,2448.4,2448.1,0.85752638]
[1730621845306,4.08429,2448.4,2448.1,0.18092345]
[1730621846333,4.84863,2448.5,2448.0,6.7004223]